[Event "Titled Tuesday Blitz June 13 Early 2023"]
[White "Talibov, Shiroghlan"]
[Black "Thecourseoisildur"]
[WhiteFideId "13429078"]
[WhiteElo "2274"]
[BlackElo "2582"]
[Result "1/2-1/2"]
[Round "2"]
[TimeControl "180+2"]
[Date "2023.06.13"]
[WhiteClock "0:00:15"]
[BlackClock "0:00:02"]
[Board "44"]

1. e4 {[%clk 0:03:00]}  c5 {[%clk 0:02:59]} 2. Nf3 {[%clk 0:02:59]}  d6 {[%clk 0:02:59]} 3. Bb5+ {[%clk 0:02:59]}  Nd7 {[%clk 0:02:59]} 4. a4 {[%clk 0:02:57]}  a6 {[%clk 0:02:58]} 5. Be2 {[%clk 0:02:52]}  Ngf6 {[%clk 0:02:56]} 6. Nc3 {[%clk 0:02:52]}  g6 {[%clk 0:02:53]} 7. a5 {[%clk 0:02:51]}  Bg7 {[%clk 0:02:53]} 8. O-O {[%clk 0:02:50]}  O-O {[%clk 0:02:52]} 9. Re1 {[%clk 0:02:51]}  Qc7 {[%clk 0:02:48]} 10. Bf1 {[%clk 0:02:49]}  Nb8 {[%clk 0:02:38]} 11. Nd5 {[%clk 0:02:47]}  Nxd5 {[%clk 0:02:34]} 12. exd5 {[%clk 0:02:48]}  e6 {[%clk 0:02:28]} 13. Bc4 {[%clk 0:02:43]}  e5 {[%clk 0:02:24]} 14. c3 {[%clk 0:02:40]}  Bg4 {[%clk 0:02:18]} 15. h3 {[%clk 0:02:38]}  Bxf3 {[%clk 0:02:19]} 16. Qxf3 {[%clk 0:02:39]}  Nd7 {[%clk 0:02:19]} 17. d3 {[%clk 0:02:37]}  Qd8 {[%clk 0:02:13]} 18. b4 {[%clk 0:02:36]}  cxb4 {[%clk 0:02:10]} 19. Bb2 {[%clk 0:02:33]}  bxc3 {[%clk 0:01:59]} 20. Bxc3 {[%clk 0:02:34]}  Rc8 {[%clk 0:01:58]} 21. Qe2 {[%clk 0:02:30]}  Nc5 {[%clk 0:01:48]} 22. Rab1 {[%clk 0:02:29]}  Re8 {[%clk 0:01:45]} 23. Bb4 {[%clk 0:02:10]}  Qd7 {[%clk 0:01:21]} 24. Ba3 {[%clk 0:02:09]}  e4 {[%clk 0:01:10]} 25. dxe4 {[%clk 0:01:58]}  Rxe4 {[%clk 0:01:00]} 26. Qc2 {[%clk 0:01:49]}  Rxe1+ {[%clk 0:00:26]} 27. Rxe1 {[%clk 0:01:50]}  Re8 {[%clk 0:00:20]} 28. Rxe8+ {[%clk 0:01:42]}  Qxe8 {[%clk 0:00:21]} 29. Bf1 {[%clk 0:01:36]}  Bd4 {[%clk 0:00:19]} 30. Qc4 {[%clk 0:01:18]}  Qe5 {[%clk 0:00:14]} 31. Bb4 {[%clk 0:01:01]}  Ne4 {[%clk 0:00:12]} 32. Be1 {[%clk 0:01:01]}  Ng3 {[%clk 0:00:07]} 33. Bd2 {[%clk 0:00:52]}  Nxf1 {[%clk 0:00:07]} 34. Kxf1 {[%clk 0:00:46]}  Bc5 {[%clk 0:00:08]} 35. Qb3 {[%clk 0:00:41]}  Qh2 {[%clk 0:00:05]} 36. Qf3 {[%clk 0:00:32]}  Qh1+ {[%clk 0:00:05]} 37. Ke2 {[%clk 0:00:32]}  Qb1 {[%clk 0:00:05]} 38. g4 {[%clk 0:00:28]}  Qb5+ {[%clk 0:00:04]} 39. Kd1 {[%clk 0:00:24]}  Qb1+ {[%clk 0:00:02]} 40. Ke2 {[%clk 0:00:24]}  Qb5+ {[%clk 0:00:03]} 41. Kd1 {[%clk 0:00:24]}  Bb4 {[%clk 0:00:02]} 42. Bh6 {[%clk 0:00:19]}  Qa4+ {[%clk 0:00:01]} 43. Ke2 {[%clk 0:00:18]}  Qb5+ {[%clk 0:00:02]} 44. Kd1 {[%clk 0:00:16]}  Qa4+ {[%clk 0:00:02]} 45. Ke2 {[%clk 0:00:16]}  Qb5+ {[%clk 0:00:02]} 46. Kd1 {[%clk 0:00:15]} 1/2-1/2


[Site "https://www.chess.com"]

[Event "Titled Tuesday Blitz June 13 Early 2023"]
[White "Skliarov, Viktor"]
[Black "Bacrot, Etienne"]
[WhiteFideId "14106736"]
[BlackFideId "605506"]
[WhiteElo "2317"]
[BlackElo "2672"]
[Result "0-1"]
[Round "2"]
[TimeControl "180+2"]
[Date "2023.06.13"]
[WhiteClock "0:00:00"]
[BlackClock "0:00:43"]
[Board "45"]

1. e4 {[%clk 0:03:00]}  c5 {[%clk 0:02:59]} 2. Nf3 {[%clk 0:03:01]}  d6 {[%clk 0:03:00]} 3. d4 {[%clk 0:03:01]}  cxd4 {[%clk 0:03:00]} 4. Qxd4 {[%clk 0:03:02]}  a6 {[%clk 0:03:00]} 5. Be3 {[%clk 0:03:01]}  Nc6 {[%clk 0:03:00]} 6. Qd2 {[%clk 0:03:02]}  Nf6 {[%clk 0:03:00]} 7. Nc3 {[%clk 0:03:02]}  g6 {[%clk 0:03:01]} 8. O-O-O {[%clk 0:03:02]}  Bg7 {[%clk 0:03:01]} 9. e5 {[%clk 0:03:02]}  Ng4 {[%clk 0:02:56]} 10. exd6 {[%clk 0:03:02]}  Be6 {[%clk 0:02:34]} 11. Ng5 {[%clk 0:02:25]}  Qxd6 {[%clk 0:02:32]} 12. Qxd6 {[%clk 0:02:23]}  exd6 {[%clk 0:02:32]} 13. Nxe6 {[%clk 0:02:23]}  fxe6 {[%clk 0:02:32]} 14. Rxd6 {[%clk 0:02:22]}  Nxe3 {[%clk 0:02:32]} 15. Rxe6+ {[%clk 0:02:22]}  Kf7 {[%clk 0:02:33]} 16. Rxe3 {[%clk 0:02:19]}  Bh6 {[%clk 0:02:33]} 17. Bc4+ {[%clk 0:02:17]}  Kg7 {[%clk 0:02:33]} 18. Kb1 {[%clk 0:01:59]}  Bxe3 {[%clk 0:02:32]} 19. fxe3 {[%clk 0:02:00]}  Rhf8 {[%clk 0:02:31]} 20. Bd5 {[%clk 0:01:52]}  Rae8 {[%clk 0:02:26]} 21. Nd1 {[%clk 0:01:31]}  Rf6 {[%clk 0:02:16]} 22. Re1 {[%clk 0:01:09]}  Ref8 {[%clk 0:02:15]} 23. Kc1 {[%clk 0:01:06]}  Rf1 {[%clk 0:02:14]} 24. Rxf1 {[%clk 0:01:05]}  Rxf1 {[%clk 0:02:13]} 25. Kd2 {[%clk 0:01:00]}  h5 {[%clk 0:02:02]} 26. a3 {[%clk 0:00:49]}  Rf8 {[%clk 0:01:56]} 27. c4 {[%clk 0:00:44]}  Kf6 {[%clk 0:01:51]} 28. Nf2 {[%clk 0:00:42]}  Ke7 {[%clk 0:01:47]} 29. Nd3 {[%clk 0:00:40]}  Kd6 {[%clk 0:01:47]} 30. Be4 {[%clk 0:00:38]}  g5 {[%clk 0:01:46]} 31. c5+ {[%clk 0:00:28]}  Ke6 {[%clk 0:01:45]} 32. b4 {[%clk 0:00:28]}  Rf1 {[%clk 0:01:30]} 33. a4 {[%clk 0:00:24]}  Nd8 {[%clk 0:01:03]} 34. b5 {[%clk 0:00:21]}  Ra1 {[%clk 0:00:56]} 35. c6 {[%clk 0:00:07]}  bxc6 {[%clk 0:00:51]} 36. Nc5+ {[%clk 0:00:04]}  Kd6 {[%clk 0:00:48]} 37. Nb7+ {[%clk 0:00:02]}  Nxb7 {[%clk 0:00:44]} 38. bxc6 {[%clk 0:00:00]}  Nc5 {[%clk 0:00:43]} 0-1


[Site "https://www.chess.com"]

[Event "Titled Tuesday Blitz June 13 Early 2023"]
[White "Shuvalov, Evgenij"]
[Black "Zemlyanskii, Ivan"]
[WhiteFideId "4187237"]
[BlackFideId "24249971"]
[WhiteElo "2080"]
[BlackElo "2421"]
[Result "0-1"]
[Round "2"]
[TimeControl "180+2"]
[Date "2023.06.13"]
[WhiteClock "0:00:18"]
[BlackClock "0:00:25"]
[Board "47"]

1. d4 {[%clk 0:03:00]}  d5 {[%clk 0:02:57]} 2. c4 {[%clk 0:03:00]}  c6 {[%clk 0:02:57]} 3. Nf3 {[%clk 0:03:00]}  Nf6 {[%clk 0:02:58]} 4. Nc3 {[%clk 0:03:00]}  dxc4 {[%clk 0:02:58]} 5. a4 {[%clk 0:03:00]}  Bf5 {[%clk 0:02:58]} 6. Ne5 {[%clk 0:02:59]}  Nbd7 {[%clk 0:02:59]} 7. Nxc4 {[%clk 0:02:59]}  Qc7 {[%clk 0:02:59]} 8. g3 {[%clk 0:02:59]}  e5 {[%clk 0:03:00]} 9. dxe5 {[%clk 0:02:58]}  Nxe5 {[%clk 0:03:01]} 10. Bf4 {[%clk 0:02:59]}  Nfd7 {[%clk 0:03:02]} 11. Bg2 {[%clk 0:02:58]}  g5 {[%clk 0:03:02]} 12. Ne3 {[%clk 0:02:56]}  gxf4 {[%clk 0:03:01]} 13. Nxf5 {[%clk 0:02:57]}  O-O-O {[%clk 0:02:41]} 14. Qc2 {[%clk 0:02:53]}  fxg3 {[%clk 0:02:24]} 15. hxg3 {[%clk 0:02:53]}  a5 {[%clk 0:02:15]} 16. Kf1 {[%clk 0:02:47]}  Bb4 {[%clk 0:01:51]} 17. Rc1 {[%clk 0:02:40]}  Nc5 {[%clk 0:01:49]} 18. Rh4 {[%clk 0:02:04]}  Kb8 {[%clk 0:01:25]} 19. Kg1 {[%clk 0:01:55]}  Ne6 {[%clk 0:01:08]} 20. Qe4 {[%clk 0:01:26]}  Bxc3 {[%clk 0:00:51]} 21. bxc3 {[%clk 0:01:19]}  h5 {[%clk 0:00:48]} 22. Rb1 {[%clk 0:01:17]}  Ng4 {[%clk 0:00:38]} 23. Bf3 {[%clk 0:00:53]}  Ng5 {[%clk 0:00:30]} 24. Qc4 {[%clk 0:00:31]}  Ne5 {[%clk 0:00:25]} 25. Qf4 {[%clk 0:00:27]}  Nexf3+ {[%clk 0:00:24]} 26. exf3 {[%clk 0:00:28]}  Qxf4 {[%clk 0:00:24]} 27. Rxf4 {[%clk 0:00:25]}  Nh3+ {[%clk 0:00:25]} 28. Kh2 {[%clk 0:00:25]}  Nxf4 {[%clk 0:00:26]} 29. gxf4 {[%clk 0:00:26]}  Rd3 {[%clk 0:00:24]} 30. Nd4 {[%clk 0:00:26]}  Rxc3 {[%clk 0:00:24]} 31. Re1 {[%clk 0:00:24]}  Rd8 {[%clk 0:00:24]} 32. Nf5 {[%clk 0:00:24]}  Rxf3 {[%clk 0:00:23]} 33. Re7 {[%clk 0:00:24]}  Rxf4 {[%clk 0:00:23]} 34. Rxf7 {[%clk 0:00:19]}  Rd5 {[%clk 0:00:23]} 35. Nh6 {[%clk 0:00:19]}  Rxf7 {[%clk 0:00:23]} 36. Nxf7 {[%clk 0:00:20]}  Rf5 {[%clk 0:00:24]} 37. Nd6 {[%clk 0:00:19]}  Rxf2+ {[%clk 0:00:25]} 38. Kg3 {[%clk 0:00:18]}  Ra2 {[%clk 0:00:25]} 0-1


[Site "https://www.chess.com"]

[Event "Titled Tuesday Blitz June 13 Early 2023"]
[White "Krzyzanowski, Marcin"]
[Black "Gavrilov, Maxim"]
[WhiteFideId "1132199"]
[BlackFideId "24271454"]
[WhiteElo "2471"]
[BlackElo "1969"]
[Result "1-0"]
[Round "2"]
[TimeControl "180+2"]
[Date "2023.06.13"]
[WhiteClock "0:00:04"]
[BlackClock "0:00:00"]
[Board "50"]

1. Nf3 {[%clk 0:03:00]}  d5 {[%clk 0:02:56]} 2. g3 {[%clk 0:03:00]}  Bg4 {[%clk 0:02:56]} 3. Bg2 {[%clk 0:03:00]}  Nd7 {[%clk 0:02:56]} 4. c4 {[%clk 0:02:55]}  e6 {[%clk 0:02:55]} 5. O-O {[%clk 0:02:50]}  Ngf6 {[%clk 0:02:54]} 6. cxd5 {[%clk 0:02:50]}  exd5 {[%clk 0:02:55]} 7. Nc3 {[%clk 0:02:49]}  c6 {[%clk 0:02:55]} 8. d3 {[%clk 0:02:49]}  Bd6 {[%clk 0:02:53]} 9. h3 {[%clk 0:02:45]}  Bxf3 {[%clk 0:02:52]} 10. Bxf3 {[%clk 0:02:42]}  O-O {[%clk 0:02:53]} 11. Bg2 {[%clk 0:02:41]}  Re8 {[%clk 0:02:52]} 12. e4 {[%clk 0:02:39]}  dxe4 {[%clk 0:02:49]} 13. dxe4 {[%clk 0:02:40]}  Be5 {[%clk 0:02:44]} 14. Qc2 {[%clk 0:02:30]}  Nc5 {[%clk 0:02:40]} 15. Rd1 {[%clk 0:02:04]}  Qe7 {[%clk 0:02:38]} 16. Ne2 {[%clk 0:01:47]}  Bc7 {[%clk 0:02:22]} 17. f3 {[%clk 0:01:27]}  Bb6 {[%clk 0:01:33]} 18. Kh2 {[%clk 0:01:23]}  a5 {[%clk 0:01:24]} 19. Be3 {[%clk 0:01:11]}  Nd5 {[%clk 0:01:22]} 20. Bd4 {[%clk 0:00:52]}  Nb4 {[%clk 0:01:17]} 21. Qd2 {[%clk 0:00:51]}  Rad8 {[%clk 0:01:10]} 22. Qc3 {[%clk 0:00:29]}  Na4 {[%clk 0:01:01]} 23. Qb3 {[%clk 0:00:30]}  Bxd4 {[%clk 0:00:57]} 24. Rxd4 {[%clk 0:00:28]}  Nc5 {[%clk 0:00:53]} 25. Qc3 {[%clk 0:00:26]}  Na4 {[%clk 0:00:43]} 26. Qb3 {[%clk 0:00:20]}  Nc5 {[%clk 0:00:42]} 27. Qc4 {[%clk 0:00:15]}  b5 {[%clk 0:00:37]} 28. Qc3 {[%clk 0:00:14]}  Na4 {[%clk 0:00:36]} 29. Qb3 {[%clk 0:00:14]}  Nc5 {[%clk 0:00:31]} 30. Qc3 {[%clk 0:00:10]}  Na4 {[%clk 0:00:31]} 31. Qc1 {[%clk 0:00:06]}  Qf6 {[%clk 0:00:23]} 32. Rxd8 {[%clk 0:00:06]}  Rxd8 {[%clk 0:00:24]} 33. b3 {[%clk 0:00:04]}  Nb2 {[%clk 0:00:18]} 34. Qg1 {[%clk 0:00:04]}  N2d3 {[%clk 0:00:16]} 35. Rd1 {[%clk 0:00:02]}  Qb2 {[%clk 0:00:15]} 36. Nf4 {[%clk 0:00:03]}  Qxa2 {[%clk 0:00:13]} 37. Nxd3 {[%clk 0:00:03]}  Rxd3 {[%clk 0:00:12]} 38. Qb6 {[%clk 0:00:02]}  h5 {[%clk 0:00:04]} 39. Qb8+ {[%clk 0:00:02]}  Kh7 {[%clk 0:00:04]} 40. Rg1 {[%clk 0:00:02]}  Rd2 {[%clk 0:00:03]} 41. Qf4 {[%clk 0:00:03]}  Kg8 {[%clk 0:00:02]} 42. Qb8+ {[%clk 0:00:03]}  Kh7 {[%clk 0:00:02]} 43. Qf4 {[%clk 0:00:03]}  Kg8 {[%clk 0:00:02]} 44. Qg5 {[%clk 0:00:03]}  g6 {[%clk 0:00:02]} 45. e5 {[%clk 0:00:03]}  Nd5 {[%clk 0:00:01]} 46. e6 {[%clk 0:00:04]}  fxe6 {[%clk 0:00:01]} 47. Qxg6+ {[%clk 0:00:04]}  Kf8 {[%clk 0:00:01]} 48. Qh6+ {[%clk 0:00:04]}  Ke7 {[%clk 0:00:01]} 49. Qg5+ {[%clk 0:00:03]}  Kd6 {[%clk 0:00:00]} 50. Qxh5 {[%clk 0:00:04]} 1-0


[Site "https://www.chess.com"]

[Event "Titled Tuesday Blitz June 13 Early 2023"]
[White "Skawinski, Arkadiusz"]
[Black "Lintchevski, Daniil"]
[WhiteFideId "1126415"]
[BlackFideId "4171055"]
[WhiteElo "2218"]
[BlackElo "2559"]
[Result "0-1"]
[Round "2"]
[TimeControl "180+2"]
[Date "2023.06.13"]
[WhiteClock "0:01:19"]
[BlackClock "0:01:46"]
[Board "52"]

1. e4 {[%clk 0:03:00]}  e5 {[%clk 0:02:56]} 2. Nf3 {[%clk 0:03:01]}  Nc6 {[%clk 0:02:56]} 3. Bb5 {[%clk 0:03:01]}  a6 {[%clk 0:02:56]} 4. Ba4 {[%clk 0:03:01]}  Nge7 {[%clk 0:02:56]} 5. O-O {[%clk 0:03:00]}  Ng6 {[%clk 0:02:54]} 6. c3 {[%clk 0:03:00]}  d5 {[%clk 0:02:54]} 7. d3 {[%clk 0:02:51]}  Be7 {[%clk 0:02:44]} 8. h3 {[%clk 0:02:47]}  O-O {[%clk 0:02:43]} 9. Nbd2 {[%clk 0:02:45]}  Be6 {[%clk 0:02:31]} 10. Re1 {[%clk 0:02:32]}  b5 {[%clk 0:02:26]} 11. Bb3 {[%clk 0:02:29]}  Qd7 {[%clk 0:02:24]} 12. exd5 {[%clk 0:02:23]}  Bxd5 {[%clk 0:02:24]} 13. Bxd5 {[%clk 0:02:07]}  Qxd5 {[%clk 0:02:25]} 14. d4 {[%clk 0:02:05]}  exd4 {[%clk 0:02:20]} 15. Nb3 {[%clk 0:01:54]}  d3 {[%clk 0:02:14]} 16. Nbd4 {[%clk 0:01:45]}  Nxd4 {[%clk 0:02:10]} 17. cxd4 {[%clk 0:01:43]}  Bb4 {[%clk 0:02:08]} 18. Bd2 {[%clk 0:01:39]}  Bd6 {[%clk 0:02:03]} 19. Be3 {[%clk 0:01:34]}  Qf5 {[%clk 0:01:56]} 20. Rc1 {[%clk 0:01:31]}  Rfe8 {[%clk 0:01:51]} 21. Rc3 {[%clk 0:01:30]}  Bb4 {[%clk 0:01:51]} 22. Rxc7 {[%clk 0:01:21]}  Bxe1 {[%clk 0:01:50]} 23. Nxe1 {[%clk 0:01:22]}  Nf4 {[%clk 0:01:46]} 24. Rc3 {[%clk 0:01:19]}  Ne2+ {[%clk 0:01:46]} 0-1


[Site "https://www.chess.com"]

[Event "Titled Tuesday Blitz June 13 Early 2023"]
[White "Gontcharov, Vladislav"]
[Black "Xu, Yi"]
[WhiteFideId "4123492"]
[BlackFideId "8605564"]
[WhiteElo "2420"]
[BlackElo "2460"]
[Result "0-1"]
[Round "2"]
[TimeControl "180+2"]
[Date "2023.06.13"]
[WhiteClock "0:00:06"]
[BlackClock "0:00:03"]
[Board "53"]

1. d4 {[%clk 0:03:00]}  Nf6 {[%clk 0:02:59]} 2. c4 {[%clk 0:03:00]}  e6 {[%clk 0:02:59]} 3. Nc3 {[%clk 0:03:00]}  Bb4 {[%clk 0:02:58]} 4. e3 {[%clk 0:03:00]}  O-O {[%clk 0:02:58]} 5. Bd3 {[%clk 0:03:00]}  d5 {[%clk 0:02:54]} 6. Nf3 {[%clk 0:02:59]}  dxc4 {[%clk 0:02:52]} 7. Bxc4 {[%clk 0:02:59]}  c5 {[%clk 0:02:53]} 8. O-O {[%clk 0:02:58]}  Nc6 {[%clk 0:02:52]} 9. a3 {[%clk 0:02:55]}  Ba5 {[%clk 0:02:52]} 10. dxc5 {[%clk 0:02:38]}  Bxc3 {[%clk 0:02:50]} 11. bxc3 {[%clk 0:02:33]}  Ne4 {[%clk 0:02:41]} 12. Qc2 {[%clk 0:02:28]}  Nxc5 {[%clk 0:02:40]} 13. e4 {[%clk 0:02:26]}  h6 {[%clk 0:02:19]} 14. Be3 {[%clk 0:02:24]}  Qe7 {[%clk 0:02:19]} 15. Rfd1 {[%clk 0:02:13]}  b6 {[%clk 0:02:17]} 16. Nd4 {[%clk 0:02:01]}  Bb7 {[%clk 0:02:10]} 17. f3 {[%clk 0:02:01]}  Rfd8 {[%clk 0:02:04]} 18. Qf2 {[%clk 0:01:52]}  Rac8 {[%clk 0:02:02]} 19. Bb5 {[%clk 0:01:46]}  Ne5 {[%clk 0:01:45]} 20. a4 {[%clk 0:01:29]}  a6 {[%clk 0:01:08]} 21. Bf1 {[%clk 0:01:28]}  Qf6 {[%clk 0:01:03]} 22. a5 {[%clk 0:01:13]}  b5 {[%clk 0:00:53]} 23. Rab1 {[%clk 0:01:02]}  Na4 {[%clk 0:00:50]} 24. Ne2 {[%clk 0:00:57]}  Nc4 {[%clk 0:00:35]} 25. Rxd8+ {[%clk 0:00:48]}  Rxd8 {[%clk 0:00:35]} 26. Bd4 {[%clk 0:00:49]}  e5 {[%clk 0:00:35]} 27. Ba7 {[%clk 0:00:49]}  Nxa5 {[%clk 0:00:28]} 28. Ng3 {[%clk 0:00:28]}  Nc6 {[%clk 0:00:28]} 29. Bb6 {[%clk 0:00:27]}  Rc8 {[%clk 0:00:18]} 30. c4 {[%clk 0:00:25]}  b4 {[%clk 0:00:13]} 31. c5 {[%clk 0:00:23]}  Nc3 {[%clk 0:00:13]} 32. Rc1 {[%clk 0:00:20]}  Nd4 {[%clk 0:00:12]} 33. Bc4 {[%clk 0:00:18]}  Rc6 {[%clk 0:00:09]} 34. Qe3 {[%clk 0:00:18]}  Rxb6 {[%clk 0:00:08]} 35. cxb6 {[%clk 0:00:18]}  Qxb6 {[%clk 0:00:09]} 36. Kh1 {[%clk 0:00:18]}  a5 {[%clk 0:00:09]} 37. Nf5 {[%clk 0:00:18]}  a4 {[%clk 0:00:06]} 38. h4 {[%clk 0:00:18]}  a3 {[%clk 0:00:06]} 39. Rxc3 {[%clk 0:00:18]}  bxc3 {[%clk 0:00:06]} 40. Qxc3 {[%clk 0:00:18]}  Nxf5 {[%clk 0:00:06]} 41. exf5 {[%clk 0:00:18]}  Qb1+ {[%clk 0:00:06]} 42. Kh2 {[%clk 0:00:18]}  a2 {[%clk 0:00:06]} 43. Bxa2 {[%clk 0:00:11]}  Qxa2 {[%clk 0:00:06]} 44. Qxe5 {[%clk 0:00:10]}  Bxf3 {[%clk 0:00:04]} 45. Qg3 {[%clk 0:00:11]}  Qxg2+ {[%clk 0:00:03]} 46. Qxg2 {[%clk 0:00:10]}  Bxg2 {[%clk 0:00:04]} 47. Kxg2 {[%clk 0:00:11]}  Kf8 {[%clk 0:00:04]} 48. Kg3 {[%clk 0:00:12]}  Ke7 {[%clk 0:00:04]} 49. Kf4 {[%clk 0:00:13]}  Kd6 {[%clk 0:00:03]} 50. Ke4 {[%clk 0:00:13]}  f6 {[%clk 0:00:03]} 51. Kd4 {[%clk 0:00:06]}  h5 {[%clk 0:00:03]} 0-1


[Site "https://www.chess.com"]

[Event "Titled Tuesday Blitz June 13 Early 2023"]
[White "Shukhman, Anna"]
[Black "Hafiz, Arif Abdul"]
[WhiteFideId "54180058"]
[BlackFideId "7104227"]
[WhiteElo "2235"]
[BlackElo "2198"]
[Result "1/2-1/2"]
[Round "2"]
[TimeControl "180+2"]
[Date "2023.06.13"]
[WhiteClock "0:00:12"]
[BlackClock "0:00:10"]
[Board "55"]

1. e4 {[%clk 0:03:00]}  e5 {[%clk 0:02:57]} 2. Nf3 {[%clk 0:03:00]}  Nc6 {[%clk 0:02:57]} 3. Bb5 {[%clk 0:02:59]}  a6 {[%clk 0:02:57]} 4. Ba4 {[%clk 0:02:59]}  Nf6 {[%clk 0:02:55]} 5. O-O {[%clk 0:02:53]}  b5 {[%clk 0:02:55]} 6. Bb3 {[%clk 0:02:52]}  Bb7 {[%clk 0:02:54]} 7. Re1 {[%clk 0:02:50]}  Bc5 {[%clk 0:02:53]} 8. c3 {[%clk 0:02:50]}  d6 {[%clk 0:02:50]} 9. d4 {[%clk 0:02:49]}  Bb6 {[%clk 0:02:50]} 10. a4 {[%clk 0:02:45]}  O-O {[%clk 0:02:39]} 11. h3 {[%clk 0:02:43]}  Re8 {[%clk 0:02:36]} 12. d5 {[%clk 0:02:25]}  Ne7 {[%clk 0:02:21]} 13. Bg5 {[%clk 0:02:18]}  Ng6 {[%clk 0:02:19]} 14. Qe2 {[%clk 0:02:11]}  h6 {[%clk 0:02:02]} 15. Be3 {[%clk 0:02:10]}  Nf4 {[%clk 0:01:49]} 16. Bxf4 {[%clk 0:02:01]}  exf4 {[%clk 0:01:49]} 17. Qd3 {[%clk 0:02:01]}  Nd7 {[%clk 0:01:35]} 18. Bc2 {[%clk 0:01:50]}  bxa4 {[%clk 0:01:32]} 19. e5 {[%clk 0:01:49]}  Nf8 {[%clk 0:01:20]} 20. Bxa4 {[%clk 0:01:26]}  Re7 {[%clk 0:01:20]} 21. Nbd2 {[%clk 0:01:25]}  dxe5 {[%clk 0:01:19]} 22. c4 {[%clk 0:01:24]}  Nd7 {[%clk 0:00:55]} 23. b4 {[%clk 0:01:18]}  a5 {[%clk 0:00:37]} 24. c5 {[%clk 0:01:09]}  axb4 {[%clk 0:00:34]} 25. Bc2 {[%clk 0:00:59]}  g6 {[%clk 0:00:32]} 26. cxb6 {[%clk 0:00:59]}  Nxb6 {[%clk 0:00:33]} 27. Rxa8 {[%clk 0:00:56]}  Bxa8 {[%clk 0:00:32]} 28. Rxe5 {[%clk 0:00:53]}  Rxe5 {[%clk 0:00:32]} 29. Nxe5 {[%clk 0:00:54]}  Qxd5 {[%clk 0:00:33]} 30. Qxd5 {[%clk 0:00:50]}  Bxd5 {[%clk 0:00:34]} 31. Bb3 {[%clk 0:00:46]}  Kf8 {[%clk 0:00:21]} 32. Nd3 {[%clk 0:00:36]}  Bxb3 {[%clk 0:00:16]} 33. Nxb3 {[%clk 0:00:37]}  Nd5 {[%clk 0:00:17]} 34. Kf1 {[%clk 0:00:30]}  Ke7 {[%clk 0:00:17]} 35. Ke2 {[%clk 0:00:30]}  Kd6 {[%clk 0:00:17]} 36. Kd2 {[%clk 0:00:31]}  g5 {[%clk 0:00:17]} 37. Ndc5 {[%clk 0:00:30]}  Kc6 {[%clk 0:00:16]} 38. Ne4 {[%clk 0:00:30]}  Kb5 {[%clk 0:00:14]} 39. Kd3 {[%clk 0:00:31]}  Ka4 {[%clk 0:00:13]} 40. Nec5+ {[%clk 0:00:30]}  Ka3 {[%clk 0:00:11]} 41. Nd4 {[%clk 0:00:28]}  Nb6 {[%clk 0:00:06]} 42. Nc2+ {[%clk 0:00:28]}  Kb2 {[%clk 0:00:05]} 43. Nxb4 {[%clk 0:00:29]}  Ka3 {[%clk 0:00:03]} 44. Nc6 {[%clk 0:00:29]}  Nd5 {[%clk 0:00:04]} 45. Ne5 {[%clk 0:00:29]}  Kb4 {[%clk 0:00:04]} 46. Kd4 {[%clk 0:00:29]}  Nc3 {[%clk 0:00:04]} 47. Ncd3+ {[%clk 0:00:29]}  Kb3 {[%clk 0:00:04]} 48. Nxf7 {[%clk 0:00:29]}  Kc2 {[%clk 0:00:04]} 49. Nb4+ {[%clk 0:00:28]}  Kd2 {[%clk 0:00:04]} 50. Ne5 {[%clk 0:00:28]}  Nd1 {[%clk 0:00:05]} 51. Nf3+ {[%clk 0:00:28]}  Ke2 {[%clk 0:00:06]} 52. Nd3 {[%clk 0:00:27]}  Nxf2 {[%clk 0:00:06]} 53. Nde5 {[%clk 0:00:22]}  Kf1 {[%clk 0:00:06]} 54. h4 {[%clk 0:00:20]}  Kxg2 {[%clk 0:00:05]} 55. hxg5 {[%clk 0:00:20]}  hxg5 {[%clk 0:00:06]} 56. Nxg5 {[%clk 0:00:21]}  Nh3 {[%clk 0:00:06]} 57. Ngf3 {[%clk 0:00:17]}  Ng1 {[%clk 0:00:06]} 58. Nh4+ {[%clk 0:00:17]}  Kg3 {[%clk 0:00:06]} 59. Nf5+ {[%clk 0:00:17]}  Kh3 {[%clk 0:00:05]} 60. Ke4 {[%clk 0:00:17]}  f3 {[%clk 0:00:05]} 61. Ke3 {[%clk 0:00:17]}  Kg2 {[%clk 0:00:05]} 62. Nh4+ {[%clk 0:00:16]}  Kg3 {[%clk 0:00:05]} 63. Nf5+ {[%clk 0:00:16]}  Kg2 {[%clk 0:00:04]} 64. Kf4 {[%clk 0:00:11]}  f2 {[%clk 0:00:04]} 65. Ne3+ {[%clk 0:00:11]}  Kh2 {[%clk 0:00:04]} 66. N5g4+ {[%clk 0:00:10]}  Kh3 {[%clk 0:00:04]} 67. Nxf2+ {[%clk 0:00:11]}  Kh4 {[%clk 0:00:03]} 68. Nf5+ {[%clk 0:00:10]}  Kh5 {[%clk 0:00:03]} 69. Ng3+ {[%clk 0:00:10]}  Kg6 {[%clk 0:00:02]} 70. Ke3 {[%clk 0:00:10]}  Kf6 {[%clk 0:00:03]} 71. Kd2 {[%clk 0:00:10]}  c5 {[%clk 0:00:04]} 72. Ke1 {[%clk 0:00:10]}  Nf3+ {[%clk 0:00:05]} 73. Ke2 {[%clk 0:00:10]}  Ne5 {[%clk 0:00:05]} 74. Nfe4+ {[%clk 0:00:10]}  Ke6 {[%clk 0:00:06]} 75. Ke3 {[%clk 0:00:10]}  Kd5 {[%clk 0:00:07]} 76. Ne2 {[%clk 0:00:10]}  Nc4+ {[%clk 0:00:07]} 77. Kd3 {[%clk 0:00:10]}  Ne5+ {[%clk 0:00:08]} 78. Ke3 {[%clk 0:00:10]}  Nc4+ {[%clk 0:00:09]} 79. Kf4 {[%clk 0:00:11]}  Ne5 {[%clk 0:00:10]} 80. N2c3+ {[%clk 0:00:11]}  Kd4 {[%clk 0:00:10]} 81. Nb5+ {[%clk 0:00:11]}  Kd5 {[%clk 0:00:10]} 82. Nc7+ {[%clk 0:00:11]}  Kc6 {[%clk 0:00:10]} 83. Kxe5 {[%clk 0:00:12]}  Kxc7 {[%clk 0:00:10]} 84. Nxc5 {[%clk 0:00:12]} 1/2-1/2


[Site "https://www.chess.com"]